Workbook

Sheet Synthesis
A1: a1 | B1: 0 | C1: =+B1*D_R -> 0 | D1: d1 | G1: 0 | H1: 0 | P1: =PI()/180 -> 0.01745329252 | W1: 4
A2: a2 | B2: -14.523 | C2: =+B2*D_R -> -0.2534741673 | D2: d2 | E2: -3.1182 | F2: 0.3225 | G2: 20 | H2: 0 | X2: Pos1 | AA2: 0 | AB2: 0
A3: a3 | B3: -21.87 | C3: =+B3*D_R -> -0.3817035074 | D3: d3 | E3: -8.6373 | F3: -0.9378 | G3: 40 | H3: 0 | K3: c0 | L3: c1 | M3: c2 | N3: c3 | X3: 0 | Y3: =W1 -> 4 | Z3: -Z | AA3: =N10 -> -11.72706119 | AB3: =O10 -> -9.348506674 | AC3: =SQRT((AA3-AA4)^2+(AB3-AB4)^2) -> 12.00049026 | AE3: =AA6 -> 7.193000509 | AF3: =AB6 -> 0.6380904389
A4: a4 | B4: -18.945 | C4: =+B4*D_R -> -0.3306526268 | D4: d4 | E4: -14.5056 | F4: -2.8354 | G4: 60 | H4: 0 | K4: =Fivepos(E2:F2,E3:F3,E4:F4,E5:F5,C2,C3,C4,C5) -> -1.62274516e-08 | L4: -0.002294755518 | M4: -0.07825517832 | N4: 0.05619027849 | X4: =G1 -> 0 | Y4: =H1 -> 0 | Z4: R | AA4: =P10 -> -20.91905295 | AB4: =Q10 -> -17.06336597 | AE4: =AA39 -> -12.18657356 | AF4: =AB39 -> -5.385590097
A5: a5 | B5: -7.097 | C5: =+B5*D_R -> -0.123866017 | D5: d5 | E5: -19.4033 | F5: -5.1301 | G5: 80 | H5: 0 | K5: t1 | L5: t2 | M5: t3 | N5: t4 | X5: =+W1 -> 4 | Y5: 0 | AA5: 0 | AB5: 0
K6: =quartic(1,N4,M4,L4,K4) -> 0.2678957298 | L6: -7.073244475e-06 | M6: -0.02902442354 | N6: -0.2950545115 | Z6: -Z | AA6: =N22 -> 7.193000509 | AB6: =O22 -> 0.6380904389 | AC6: =SQRT((AA6-AA7)^2+(AB6-AB7)^2) -> 60.73288762
Z7: R | AA7: =P22 -> -20.27004756 | AB7: =Q22 -> 54.80694338
K9: b41 | L9: b42 | N9: -Z | P9: R | V9: a2R | W9: =Basic.mag(($AA$4-X14),($AB$4-Y14)) -> 24.88249789 | AA9: =X14 -> -3.1182 | AB9: =Y14 -> 0.3225
B10: 80 | C10: 2.7 | D10: 4.9 | H10: b21 | I10: =ATAN2((1-K6^2),2*K6) -> 0.5234990117 | K10: =Burmester($E$2:$F$2,$E$3:$F$3,$E$4:$F$4,$C$2,$C$3,$C$4,I10) -> 1.570643102 | L10: 5.974148762 | N10: =ThreePosition_Basic2(C2,C4,E2:F2,E4:F4,I10,K10) -> -11.72706119 | O10: -9.348506674 | P10: -20.91905295 | Q10: -17.06336597 | S10: aZ | T10: =Basic.mag(AA3,AB3) -> 14.99728446 | V10: FR | W10: =ATAN2(($AA$4-X14),($AB$4-Y14)) -> -2.367987796 | AA10: =AA9+$T$10*COS(W10-W11) -> -16.81485918 | AB10: =AB9+$T$10*SIN(W10-W11) -> -5.78651535 | AC10: =SQRT((AA10-AA11)^2+(AB10-AB11)^2) -> 12.00049026
B11: 55 | C11: 2.8 | D11: 4.6 | I11: =I10/D_R -> 29.99428395 | K11: =K10/D_R -> 89.99122089 | L11: =L10/D_R -> 342.2935102 | N11: =ThreePosition_Basic2(C2,C4,E2:F2,E4:F4,I10,L10) -> -13.42085491 | O11: 31.6609525 | P11: -15.79091868 | Q11: 42.79811592 | S11: aR | T11: =Basic.mag(AA4,AB4) -> 26.99565214 | V11: h | W11: =angcos(W9,$T$10,$T$12) -> 0.354063714 | AA11: =AA4 -> -20.91905295 | AB11: =AB4 -> -17.06336597
B12: 0 | C12: 2.9 | D12: 4.4 | N12: =CRotate_Trans($G$1:$H$1,N10:O10,$C$1) -> -11.72706119 | O12: -9.348506674 | P12: =CRotate_Trans($G$1:$H$1,P10:Q10,$C$1) -> -20.91905295 | Q12: -17.06336597 | S12: aRZ | T12: =Basic.mag((AA4-AA3),(AB4-AB3)) -> 12.00049026 | W12: =C2 -> -0.2534741673 | X12: Pos2
B13: -35 | C13: 3 | D13: 4.2 | N13: =CRotate_Trans($G$1:$H$1,N11:O11,$C$1) -> -13.42085491 | O13: 31.6609525 | P13: =CRotate_Trans($G$1:$H$1,P11:Q11,$C$1) -> -15.79091868 | Q13: 42.79811592 | V13: a2R | W13: =Basic.mag(($AA$7-X14),($AB$7-Y14)) -> 57.12040306 | X13: =X14+$W$1*COS(W12+PI()/2) -> -2.115125507 | Y13: =Y14+$W$1*SIN(W12+PI()/2) -> 4.194688214 | AA13: =X14 -> -3.1182 | AB13: =Y14 -> 0.3225
B14: -60 | C14: 3 | D14: 4 | V14: FR | W14: =ATAN2(($AA$7-X14),($AB$7-Y14)) -> 1.875777612 | X14: =E2 -> -3.1182 | Y14: =F2 -> 0.3225 | AA14: =AA13+T15*COS(W14-W15) -> 4.004976009 | AB14: =AB13+T15*SIN(W14-W15) -> -0.8635772655 | AC14: =SQRT((AA14-AA15)^2+(AB14-AB15)^2) -> 60.73288762
H15: b22 | I15: =ATAN2((1-L6^2),2*L6) -> -1.414648895e-05 | K15: =Burmester($E$2:$F$2,$E$3:$F$3,$E$4:$F$4,$C$2,$C$3,$C$4,I15) -> 6.283136919 | L15: 5.981930403 | N15: =ThreePosition_Basic2(C2,C4,E2:F2,E4:F4,I15,K15) -> 8.04740848 | O15: -6.370718657 | P15: -105460.4891 | Q15: 351522.8479 | S15: aZ | T15: =Basic.mag(AA6,AB6) -> 7.221247519 | V15: h | W15: =angcos(W13,$T$15,$T$17) -> 2.040773475 | X15: =X14+$W$1*COS(W12) -> 0.7539882136 | Y15: =Y14+$W$1*SIN(W12) -> -0.680574493 | AA15: =AA7 -> -20.27004756 | AB15: =AB7 -> 54.80694338
I16: =I15/D_R -> -0.0008105341117 | K16: =K15/D_R -> 359.9972276 | L16: =L15/D_R -> 342.7393655 | N16: =ThreePosition_Basic2(C2,C4,E2:F2,E4:F4,I15,L15) -> -0.2924542256 | O16: 12.39545681 | P16: -16.76503475 | Q16: 45.16587401 | S16: aR | T16: =Basic.mag(AA7,AB7) -> 58.435228
E17: 2.50744 | F17: 4.19698 | L17: =L16-360 -> -17.26063454 | N17: =CRotate_Trans($G$1:$H$1,N15:O15,$C$1) -> 8.04740848 | O17: -6.370718657 | P17: =CRotate_Trans($G$1:$H$1,P15:Q15,$C$1) -> -105460.4891 | Q17: 351522.8479 | S17: aRZ | T17: =Basic.mag((AA7-AA6),(AB7-AB6)) -> 60.73288762 | V17: a2R | W17: =Basic.mag(($AA$4-X22),($AB$4-Y22)) -> 20.27006002
E18: 2.79188 | F18: 4.19651 | N18: =CRotate_Trans($G$1:$H$1,N16:O16,$C$1) -> -0.2924542256 | O18: 12.39545681 | P18: =CRotate_Trans($G$1:$H$1,P16:Q16,$C$1) -> -16.76503475 | Q18: 45.16587401 | V18: FR | W18: =ATAN2(($AA$4-X22),($AB$4-Y22)) -> -2.221700677 | Z18: =W18/D_R -> -127.2940721 | AA18: =X22 -> -8.6373 | AB18: =Y22 -> -0.9378
E19: 3.20342 | F19: 4.65012 | H19: b23 | I19: =ATAN2((1-M6^2),2*M6) -> -0.05803255486 | K19: =Burmester($E$2:$F$2,$E$3:$F$3,$E$4:$F$4,$C$2,$C$3,$C$4,I19) -> 6.049516179 | L19: 6.02589134 | N19: =ThreePosition_Basic2(C2,C4,E2:F2,E4:F4,I19,K19) -> 8.123453559 | O19: -1.231111006 | P19: -22.57944657 | Q19: 61.43798128 | S19: aZ | T19: =Basic.mag(N19,O19) -> 8.216211538 | V19: h | W19: =angcos(W17,$T$10,$T$12) -> 0.6285801732 | Z19: =W19/D_R -> 36.01499101 | AA19: =AA18+$T$10*COS(W18-W19) -> -23.00271795 | AB19: =AB18+$T$10*SIN(W18-W19) -> -5.245155167 | AC19: =SQRT((AA19-AA20)^2+(AB19-AB20)^2) -> 12.00049026
E20: 2.61216 | F20: 4.6637 | I20: =I19/D_R -> -3.325020468 | K20: =K19/D_R -> 346.6117452 | L20: =L19/D_R -> 345.2581416 | N20: =ThreePosition_Basic2(C2,C4,E2:F2,E4:F4,I19,L19) -> 7.193000509 | O20: 0.6380904389 | P20: -20.27004756 | Q20: 54.80694338 | S20: aR | T20: =Basic.mag(P19,Q19) -> 65.45576331 | W20: =C3 -> -0.3817035074 | X20: Pos3 | AA20: =AA4 -> -20.91905295 | AB20: =AB4 -> -17.06336597
I21: =360+I20 -> 356.6749795 | K21: =K20-360 -> -13.38825482 | L21: =L20-360 -> -14.74185839 | N21: =CRotate_Trans($G$1:$H$1,N19:O19,$C$1) -> 8.123453559 | O21: -1.231111006 | P21: =CRotate_Trans($G$1:$H$1,P19:Q19,$C$1) -> -22.57944657 | Q21: 61.43798128 | S21: aRZ | T21: =Basic.mag((P19-N19),(Q19-O19)) -> 69.78598143 | V21: a2R | W21: =Basic.mag(($AA$7-X22),($AB$7-Y22)) -> 56.94556375 | X21: =X22+$W$1*COS(W20+PI()/2) -> -7.14729233 | Y21: =Y22+$W$1*SIN(W20+PI()/2) -> 2.774325691
E22: =Basic.mag((E17-E18),(F17-F18)) -> 0.2844403883 | N22: =CRotate_Trans($G$1:$H$1,N20:O20,$C$1) -> 7.193000509 | O22: 0.6380904389 | P22: =CRotate_Trans($G$1:$H$1,P20:Q20,$C$1) -> -20.27004756 | Q22: 54.80694338 | V22: FR | W22: =ATAN2(($AA$7-X22),($AB$7-Y22)) -> 1.776522814 | X22: =E3 -> -8.6373 | Y22: =F3 -> -0.9378 | AA22: =X22 -> -8.6373 | AB22: =Y22 -> -0.9378
E23: =Basic.mag((E18-E19),(F18-F19)) -> 0.6124762883 | H23: b24 | I23: =ATAN2((1-N6^2),2*N6) -> -0.5738269924 | K23: =Burmester($E$2:$F$2,$E$3:$F$3,$E$4:$F$4,$C$2,$C$3,$C$4,I23) -> 5.956318993 | L23: 4.499124065 | N23: =ThreePosition_Basic2(C2,C4,E2:F2,E4:F4,I23,K23) -> -33.79130403 | O23: 60.72592077 | P23: -15.57839251 | Q23: 41.80261212 | V23: h | W23: =angcos(W21,$T$15,$T$17) -> 2.069748016 | X23: =X22+$W$1*COS(W20) -> -4.925174309 | Y23: =Y22+$W$1*SIN(W20) -> -2.42780767 | AA23: =AA22+T15*COS(W22-W23) -> -1.724279592 | AB23: =AB22+T15*SIN(W22-W23) -> -3.025038505 | AC23: =SQRT((AA23-AA24)^2+(AB23-AB24)^2) -> 60.73288762
E24: =Basic.mag((E19-E20),(F19-F20)) -> 0.5914159315 | I24: =I23/D_R -> -32.87786484 | K24: =K23/D_R -> 341.2719397 | L24: =L23/D_R -> 257.7808205 | N24: =ThreePosition_Basic2(C2,C4,E2:F2,E4:F4,I23,L23) -> 23.79769312 | O24: 9.404874555 | P24: 12.96197004 | Q24: 9.008075074 | S24: aZ | T24: =Basic.mag(N24,O24) -> 25.58870577 | AA24: =AA15 -> -20.27004756 | AB24: =AB15 -> 54.80694338
I25: =360+I24 -> 327.1221352 | K25: =K24-360 -> -18.72806026 | N25: =CRotate_Trans($G$1:$H$1,N23:O23,$C$1) -> -33.79130403 | O25: 60.72592077 | P25: =CRotate_Trans($G$1:$H$1,P23:Q23,$C$1) -> -15.57839251 | Q25: 41.80261212 | S25: aR | T25: =Basic.mag(P24,Q24) -> 15.78474212 | V25: a2R | W25: =Basic.mag(($AA$4-X30),($AB$4-Y30)) -> 15.60664584
N26: =CRotate_Trans($G$1:$H$1,N24:O24,$C$1) -> 23.79769312 | O26: 9.404874555 | P26: =CRotate_Trans($G$1:$H$1,P24:Q24,$C$1) -> 12.96197004 | Q26: 9.008075074 | S26: aRZ | T26: =Basic.mag((P24-N24),(Q24-O24)) -> 10.84298595 | V26: FR | W26: =ATAN2(($AA$4-X30),($AB$4-Y30)) -> -1.994285303 | X26: =W26/D_R -> -114.264131 | AA26: =X30 -> -14.5056 | AB26: =Y30 -> -2.8354
V27: h | W27: =angcos(W25,$T$10,$T$12) -> 0.8049446665 | X27: =W27/D_R -> 46.11993213 | AA27: =AA26+$T$10*COS(W26-W27) -> -28.63250372 | AB27: =AB26+$T$10*SIN(W26-W27) -> -7.870192216 | AC27: =SQRT((AA27-AA28)^2+(AB27-AB28)^2) -> 12.00049026
W28: =C4 -> -0.3306526268 | X28: Pos4 | AA28: =AA20 -> -20.91905295 | AB28: =AB20 -> -17.06336597
N29: R | O29: -0.19256 | P29: -0.70302 | V29: a2R | W29: =Basic.mag(($AA$7-X30),($AB$7-Y30)) -> 57.92985937 | X29: =X30+$W$1*COS(W28+PI()/2) -> -13.20695851 | Y29: =Y30+$W$1*SIN(W28+PI()/2) -> 0.9479226516
N30: -Z | O30: -0.00812 | P30: -0.40349 | V30: FR | W30: =ATAN2(($AA$7-X30),($AB$7-Y30)) -> 1.670468642 | X30: =E4 -> -14.5056 | Y30: =F4 -> -2.8354 | AA30: =X30 -> -14.5056 | AB30: =Y30 -> -2.8354
N31: -Z | O31: 0.30342 | P31: 0.25012 | V31: h | W31: =angcos(W29,$T$15,$T$17) -> 1.912642964 | X31: =X30+$W$1*COS(W28) -> -10.72227735 | Y31: =Y30+$W$1*SIN(W28) -> -4.134041488 | AA31: =AA30+T15*COS(W30-W31) -> -7.495076881 | AB31: =AB30+T15*SIN(W30-W31) -> -4.567156718 | AC31: =SQRT((AA31-AA32)^2+(AB31-AB32)^2) -> 60.73288762
N32: R | O32: -0.38784 | P32: 0.4637 | AA32: =AA24 -> -20.27004756 | AB32: =AB24 -> 54.80694338
V33: a2R | W33: =Basic.mag(($AA$4-X38),($AB$4-Y38)) -> 12.02914559
V34: FR | W34: =ATAN2(($AA$4-X38),($AB$4-Y38)) -> -1.697138882 | AA34: =X38 -> -19.4033 | AB34: =Y38 -> -5.1301
V35: h | W35: =angcos(W33,$T$10,$T$12) -> 0.8953044778 | AA35: =AA34+$T$10*COS(W34-W35) -> -32.19551673 | AB35: =AB34+$T$10*SIN(W34-W35) -> -12.95810947 | AC35: =SQRT((AA35-AA36)^2+(AB35-AB36)^2) -> 12.00049026
W36: =C5 -> -0.123866017 | X36: Pos5 | AA36: =AA28 -> -20.91905295 | AB36: =AB28 -> -17.06336597
V37: a2R | W37: =Basic.mag(($AA$7-X38),($AB$7-Y38)) -> 59.94331006 | X37: =X38+$W$1*COS(W36+PI()/2) -> -18.90910193 | Y37: =Y38+$W$1*SIN(W36+PI()/2) -> -1.160746367
V38: FR | W38: =ATAN2(($AA$7-X38),($AB$7-Y38)) -> 1.585256285 | X38: =E5 -> -19.4033 | Y38: =F5 -> -5.1301 | AA38: =X38 -> -19.4033 | AB38: =Y38 -> -5.1301
V39: h | W39: =angcos(W37,$T$15,$T$17) -> 1.620643997 | X39: =X38+$W$1*COS(W36) -> -15.43394637 | Y39: =Y38+$W$1*SIN(W36) -> -5.624298073 | AA39: =AA38+T15*COS(W38-W39) -> -12.18657356 | AB39: =AB38+T15*SIN(W38-W39) -> -5.385590097 | AC39: =SQRT((AA39-AA40)^2+(AB39-AB40)^2) -> 60.73288762
AA40: =AA32 -> -20.27004756 | AB40: =AB32 -> 54.80694338

Sheet Analysis
B1: 0 | C1: 0 | P1: =PI()/180 -> 0.01745329252
A2: -Z1 | B2: =Synthesis!AA6 -> 7.193000509 | C2: =Synthesis!AB6 -> 0.6380904389 | D2: b3 | E2: =Basic.mag(B2,C2) -> 7.221247519 | G2: a1 | H2: =Basic.mag((B6-B3),(C6-C3)) -> 71.87323963 | I2: a1 | J2: =ATAN2((B3-B6),(C3-C6)) -> 1.561766343 | K2: =J2/D_R -> 89.48262003 | M2: =Synthesis!X3 -> 0 | N2: 4
A3: R1 | B3: =Synthesis!AA7 -> -20.27004756 | C3: =Synthesis!AB7 -> 54.80694338 | G3: a2 | H3: =Basic.mag((B5-B6),(C5-C6)) -> 12.00049026 | I3: q120 | J3: =ATAN2((B5-B6),(C5-C6)) -> 0.6982505862 | K3: =J3/D_R -> 40.00681163 | M3: =Synthesis!X4 -> 0 | N3: =Synthesis!Y4 -> 0
B4: 0 | C4: 0 | G4: a4 | H4: =Basic.mag((B2-B3),(C2-C3)) -> 60.73288762 | I4: q130 | J4: =ATAN2((B2-B5),(C2-C5)) -> 0.4856638031 | K4: =J4/D_R -> 27.82648618 | M4: 4 | N4: =Synthesis!Y5 -> 0
A5: -Z2 | B5: =Synthesis!AA3 -> -11.72706119 | C5: =Synthesis!AB3 -> -9.348506674 | D5: c3 | E5: =Basic.mag(B5,C5) -> 14.99728446 | G5: a3 | H5: =Basic.mag((B2-B5),(C2-C5)) -> 21.39394439 | I5: q3 | J5: =ATAN2(B5,C5) -> -2.468577343 | K5: =J5/D_R -> -141.4390631
A6: R2 | B6: =Synthesis!AA4 -> -20.91905295 | C6: =Synthesis!AB4 -> -17.06336597 | I6: b3 | J6: =PI()-J5+J4 -> 6.0958338 | M6: =Synthesis!X13 -> -2.115125507 | N6: =Synthesis!Y13 -> 4.194688214
A7: -Z1 | B7: =B2 -> 7.193000509 | C7: =C2 -> 0.6380904389 | F7: q140 | G7: =ATAN2((B2-B3),(C2-C3)) -> -1.101572642 | H7: =G7/D_R -> -63.11546319 | J7: =J4/D_R -> 27.82648618 | K7: =360-128 -> 232 | M7: =Synthesis!X14 -> -3.1182 | N7: =Synthesis!Y14 -> 0.3225
A8: -Z2 | B8: =B5 -> -11.72706119 | C8: =C5 -> -9.348506674 | E8: =B6-B3 -> -0.649005386 | F8: =C6-C3 -> -71.87030935 | H8: =360+H7 -> 296.8845368 | J8: =J5/D_R -> -141.4390631 | M8: =Synthesis!X15 -> 0.7539882136 | N8: =Synthesis!Y15 -> -0.680574493
H9: =H8-J7 -> 269.0580506 | J9: =J6/D_R -> 349.2655493
J10: =J2/D_R -> 89.48262003 | M10: =Synthesis!X21 -> -7.14729233 | N10: =Synthesis!Y21 -> 2.774325691
A11: q12 | B11: sx | C11: sy | D11: s | E11: f | F11: y | G11: m | J11: =J3/D_R -> 40.00681163 | M11: =Synthesis!X22 -> -8.6373 | N11: =Synthesis!Y22 -> -0.9378
A12: =J11+A13 -> 117.0068116 | B12: =B6-B3+H3*COS(A12*D_R) -> -6.0983851 | C12: =C6-C3+H3*SIN(A12*D_R) -> -61.17844202 | D12: =Basic.mag(C12,B12) -> 61.48164009 | E12: =ATAN2(B12,C12) -> -1.670150047 | F12: =angcos(D12,H4,H5) -> 0.3517067696 | G12: =angcos(H4,H5,D12) -> 1.429408343 | I12: A0 | J12: =B6 -> -20.91905295 | K12: =C6 -> -17.06336597 | M12: =Synthesis!X23 -> -4.925174309 | N12: =Synthesis!Y23 -> -2.42780767
A13: 77 | C13: q13 | D13: q14 | I13: A | J13: =J12+H3*COS(A12*D_R) -> -26.36843266 | K13: =K12+H3*SIN(A12*D_R) -> -6.371498634
C14: =D14+G12 -> 0.1109650656 | D14: =E12+F12 -> -1.318443278 | E14: =E12/D_R -> -95.69254887 | F14: =F12/D_R -> 20.15131352 | I14: B | J14: =J21+H4*COS(D14) -> -5.10606762 | K14: =K21+H4*SIN(D14) -> -4.002387093 | M14: =Synthesis!X29 -> -13.20695851 | N14: =Synthesis!Y29 -> 0.9479226516
C15: =C14+2*PI() -> 6.394150373 | D15: =D14/D_R -> -75.54123534 | I15: P | J15: =J13+E5*COS(C14-J6) -> -12.03353893 | K15: =K13+E5*SIN(C14-J6) -> -1.963623516 | M15: =Synthesis!X30 -> -14.5056 | N15: =Synthesis!Y30 -> -2.8354
C16: =C15/D_R -> 366.3578299 | I16: A | J16: =J13 -> -26.36843266 | K16: =K13 -> -6.371498634 | M16: =Synthesis!X31 -> -10.72227735 | N16: =Synthesis!Y31 -> -4.134041488
I18: P | J18: =J15 -> -12.03353893 | K18: =K15 -> -1.963623516 | M18: =Synthesis!X37 -> -18.90910193 | N18: =Synthesis!Y37 -> -1.160746367
I19: Q | J19: =J18+4*COS(C14-J6+PI()-J5) -> -8.311067239 | K19: =K18+4*SIN(C14-J6+PI()-J5) -> -3.427592258 | M19: =Synthesis!X38 -> -19.4033 | N19: =Synthesis!Y38 -> -5.1301
I20: B | J20: =J14 -> -5.10606762 | K20: =K14 -> -4.002387093 | M20: =Synthesis!X39 -> -15.43394637 | N20: =Synthesis!Y39 -> -5.624298073
I21: B0 | J21: =B3 -> -20.27004756 | K21: =C3 -> 54.80694338
B24: =B4 -> 0 | C24: 0
A25: =A5 -> -Z2 | B25: -11.72706119 | C25: -9.348506674
A26: =A6 -> R2 | B26: -20.91905295 | C26: -17.06336597
B27: 0 | C27: 0
B28: =Synthesis!N15 -> 8.04740848 | C28: =Synthesis!O15 -> -6.370718657
B29: =B25 -> -11.72706119 | C29: =C25 -> -9.348506674
B31: 8.04740848 | C31: -6.370718657 | E31: q130 | F31: 0.141989016
B32: -12.2046467 | C32: -12.44626225 | E32: =PI()-F31+C33-E38 -> 2.47196489 | F32: =E32/D_R -> 141.6331553
B33: a1 | C33: =ATAN2((B31-B32),(C31-C32)) -> 0.2914534894 | D33: =C33/D_R -> 16.69905487
B34: b1 | C34: =ATAN2((B28-B26),(C28-C26)) -> 0.3536222844 | D34: =C34/D_R -> 20.26106444 | E34: =ATAN2(B28,C28) -> -0.6696277631 | F34: =E34/D_R -> -38.36684467
C35: =Basic.mag((B31-B26),(C31-C26)) -> 30.87699134 | E35: =ATAN2((B25-B28),(C25-C28)) -> -2.99212818 | F35: =E35/D_R -> -171.4363165
B36: C | C36: =C35*SIN(C34-C33) -> 1.918349065 | E36: =Basic.mag(B25,C25) -> 14.99728446
B37: a2 | C37: =Basic.mag((B25-B26),(C25-C26)) -> 12.00049026 | D37: c3 | E37: =Basic.mag(B28,C28) -> 10.26386085
B38: a3 | C38: =Basic.mag((B28-B29),(C28-C29)) -> 19.99742164 | D38: b3 | E38: =angcos(E37,C38,E36) -> 0.8190922365 | F38: =E38/D_R -> 46.93052819
A40: q12 | B40: q13 | D40: S | E40: sx | F40: sy | H40: A0 | I40: =B26 -> -20.91905295 | J40: =C26 -> -17.06336597
A41: =+J11+A42 -> 106.0068116 | B41: =ASIN((C37*SIN(A41*D_R-C33)-C36)/C38) -> 0.5283722728 | C41: =B41/D_R -> 30.27350124 | D41: =C37*COS(A41*D_R-C33)+C38*COS(B41) -> 17.41533469 | E41: =-C36*SIN(C33)+D41*COS(C33)+B26 -> -4.789398557 | F41: =C26+C36*COS(C33)+D41*SIN(C33) -> -10.22171452 | H41: A | I41: =C37*COS(A41*D_R)+I40 -> -24.22820774 | J41: =J40+C37*SIN(A41*D_R) -> -5.528147682
A42: 66 | B42: =B41/D_R -> 30.27350124 | H42: B | I42: =E41 -> -4.789398557 | J42: =F41 -> -10.22171452
H43: P | I43: =I42+E37*COS(PI()-B41+C33-E38) -> -9.842789832 | J43: =J42+E37*SIN(PI()-B41+C33-E38) -> -1.288065992
D44: =90+D33 -> 106.6990549 | H44: A | I44: =I41 -> -24.22820774 | J44: =J41 -> -5.528147682
H45: P | I45: =I43 -> -9.842789832 | J45: =J43 -> -1.288065992
H46: Q | I46: =I45+4*COS(PI()-B41+C33-E38-E32) -> -6.137677626 | J46: =J45+4*SIN(PI()-B41+C33-E38-E32) -> -2.795429101

Sheet Sheet1
N1: b2 | P1: b4
D2: b2 | F2: b4 | N2: -3.325020468 | P2: -14.74185839
D3: -32.87786484 | F3: 341.2719397
F4: =F3-360 -> -18.72806026
U52: b2 | W52: b4
E53: b2 | G53: b4 | U53: 0 | W53: 0
E54: 29.99428395 | G54: 89.99122089
